bitfinex/quotes_SOLUSD_20251120
["timestamp","ask_amount","ask_price","bid_price","bid_amount"]
[1763657199179,9.83857816,132.07,132.03,0.1]
[1763657199485,1.88,132.07,132.03,0.1]
[1763657199789,1.88,132.07,132.04,0.68]
[1763657200387,1.88,132.07,132.03,0.1]
[1763657200388,9.83857816,132.07,132.03,0.1]
[1763657200576,9.83857816,132.07,132.03,0.78]
[1763657200774,1.88,132.07,132.03,0.1]
[1763657200977,7.95857816,132.06,132.03,0.1]
[1763657201178,1.88,132.07,132.03,0.1]
[1763657201474,51.88,132.07,132.03,0.1]
[1763657201785,7.95857816,132.06,132.03,0.1]
[1763657202630,7.95857816,132.05,132.03,0.1]
[1763657202794,7.95857816,132.04,132.03,0.1]
[1763657202991,51.88,132.07,132.01,8.63857816]
[1763657203502,7.95857816,132.06,132.02,0.68]
[1763657203872,51.88,132.07,132.0,11.0]
[1763657203873,57.95857816,132.05,132.0,11.0]
[1763657204085,7.95857816,132.04,132.0,11.0]
[1763657204302,1.88,132.03,132.01,0.68]
[1763657204796,50.0,132.05,132.01,0.68]
[1763657205001,7.95857816,132.05,132.0,11.0]
[1763657205203,7.95857816,132.03,132.0,11.0]
[1763657206018,7.95857816,132.02,132.0,11.0]
[1763657206181,9.83857816,132.02,132.0,11.0]
[1763657206506,1.88,132.02,132.0,11.0]
[1763657207412,9.83857816,132.02,132.0,11.0]
[1763657209012,1.88,132.02,132.0,11.0]
[1763657209425,59.83857816,132.02,132.0,11.0]
[1763657209583,51.88,132.02,132.0,11.0]
[1763657210280,59.83857816,132.02,132.0,11.0]
[1763657210490,51.88,132.02,132.0,11.0]
[1763657210809,1.88,132.02,132.0,11.7]
[1763657210985,1.88,132.02,132.0,11.0]
[1763657211297,7.95857816,132.03,132.0,11.0]
[1763657211611,50.0,132.04,132.01,0.7]
[1763657211810,1.88,132.05,132.01,0.7]
[1763657212016,9.83857816,132.05,132.01,0.7]
[1763657213314,1.88,132.05,132.01,8.65857816]
[1763657213480,1.88,132.05,132.02,7.95857816]
[1763657213792,1.88,132.05,132.02,8.65857816]
[1763657213994,1.88,132.05,132.03,0.7]
[1763657214715,1.88,132.05,132.01,0.7]
[1763657215590,1.88,132.05,132.02,7.95857816]
[1763657216087,57.95857816,132.06,132.02,0.7]
[1763657216295,50.0,132.06,132.02,0.7]
[1763657216513,57.95857816,132.06,132.02,0.7]
[1763657216819,7.95857816,132.05,132.0,18.95857816]
[1763657217003,7.95857816,132.04,132.0,11.0]
[1763657217192,7.95857816,132.03,132.0,11.0]
[1763657217803,59.83857816,132.04,132.01,0.7]
[1763657218183,51.88,132.04,132.01,0.7]
[1763657218614,1.88,132.04,132.01,0.7]
[1763657219316,1.88,132.04,132.0,11.0]
[1763657219317,7.95857816,132.03,132.0,11.0]
[1763657219688,59.45349808,132.04,132.0,11.0]
[1763657219894,7.95857816,132.03,132.0,11.0]
[1763657220398,57.95857816,132.01,132.0,11.0]
[1763657220586,67.74740585,132.01,132.0,11.0]
[1763657220783,76.07953816,132.01,132.0,11.0]
[1763657221018,9.83857816,132.04,132.0,11.0]
[1763657221215,50.0,132.01,132.0,11.0]
[1763657221941,57.95857816,132.01,132.0,11.0]
[1763657222110,59.78882769,132.01,132.0,11.0]
[1763657222500,67.74740585,132.01,132.0,11.0]
[1763657222701,67.36401138,132.01,132.0,11.0]
[1763657223003,50.0,131.96,131.94,0.1]
[1763657223416,50.0,131.99,131.95,0.7]
[1763657223618,51.88,132.01,131.95,8.65857816]
[1763657223830,51.88,132.01,131.95,0.7]
[1763657224004,7.95857816,132.0,131.95,8.65857816]
[1763657224209,51.88,132.01,131.95,0.7]
[1763657224406,50.0,131.98,131.94,0.8]
[1763657224632,9.78882769,132.0,131.94,0.8]
[1763657224633,50.0,131.96,131.94,0.1]
[1763657224815,7.95857816,131.95,131.94,0.1]
[1763657225178,50.0,131.96,131.94,0.1]
[1763657225432,9.78882769,131.95,131.94,0.1]
[1763657225600,50.0,131.9,131.89,0.1]
[1763657226041,59.78882769,131.9,131.89,0.1]
[1763657226238,50.0,131.9,131.89,0.1]
[1763657226529,75.32890698,131.9,131.89,0.1]
[1763657226731,50.0,131.85,131.84,0.5]
[1763657226939,69.62740585,131.85,131.84,0.5]
[1763657227433,61.66882769,131.85,131.84,0.5]
[1763657227615,51.88,131.85,131.84,0.5]
[1763657228323,27.90978769,131.87,131.84,0.5]
[1763657228324,50.0,131.87,131.84,0.5]
[1763657228639,50.0,131.89,131.85,0.7]
[1763657228840,35.55992913,131.99,131.85,0.7]
[1763657228841,50.0,131.92,131.85,0.7]
[1763657229132,50.0,131.9,131.85,0.7]
[1763657229506,50.0,131.9,131.86,0.7]
[1763657230140,51.88,131.93,131.86,0.7]
[1763657230313,57.95857816,131.9,131.84,0.5]
[1763657230501,50.0,131.87,131.84,0.5]
[1763657231028,7.95857816,131.9,131.84,1.2]
[1763657231029,50.0,131.9,131.84,1.2]
[1763657231231,50.0,131.94,131.84,19.32096]
[1763657231456,12.52812471,131.91,131.85,0.7]
[1763657231734,50.0,131.94,131.88,12.52812471]
[1763657231902,50.0,131.94,131.85,0.7]
[1763657232102,50.0,131.92,131.87,12.52812471]
[1763657232298,50.0,131.9,131.85,0.7]
[1763657232525,50.0,131.9,131.85,13.22812471]
[1763657232729,50.0,131.92,131.89,12.52812471]
[1763657232916,50.0,131.95,131.91,12.52812471]
[1763657233233,50.0,131.95,131.9,12.52812471]
[1763657233424,50.0,131.97,131.92,12.52812471]
[1763657233604,50.0,131.97,131.93,0.7]
[1763657233801,50.0,131.97,131.96,12.52812471]
[1763657234030,12.52812471,132.03,131.93,0.7]
[1763657234232,0.65,132.04,131.98,12.52812471]
[1763657234412,50.0,132.03,131.98,12.52812471]
[1763657234608,12.52812471,132.0,131.94,13.22812471]
[1763657234819,50.0,132.01,131.94,0.7]
[1763657235127,62.52812471,132.01,131.95,0.7]
[1763657235319,50.0,132.01,131.96,12.52812471]
[1763657235627,50.0,132.01,131.89,1.88]
[1763657235628,50.0,131.99,131.93,13.22812471]
[1763657235941,50.0,131.99,131.92,0.7]
[1763657235942,51.88,131.98,131.92,0.7]
[1763657236119,50.0,131.98,131.92,13.22812471]
[1763657236310,12.52812471,131.97,131.92,0.7]
[1763657236498,50.0,131.98,131.92,0.7]
[1763657236698,50.0,131.98,131.93,12.52812471]
[1763657236903,50.0,131.98,131.92,0.7]
[1763657236904,62.52812471,131.98,131.92,0.7]
[1763657237105,62.52812471,131.98,131.92,13.22812471]
[1763657237325,62.52812471,131.98,131.87,20.00096]
[1763657237326,50.0,131.98,131.94,12.52812471]
[1763657237516,62.52812471,132.0,131.94,12.52812471]
[1763657237718,50.0,132.0,131.96,12.52812471]
[1763657237935,50.0,132.0,131.97,12.52812471]
[1763657238110,50.0,132.0,131.98,0.7]
[1763657238306,50.0,132.02,131.98,13.22812471]
[1763657238610,12.52812471,132.01,131.96,0.7]
[1763657238812,62.52812471,132.0,131.93,0.7]
[1763657239011,50.0,132.0,131.96,12.52812471]
[1763657239206,50.0,132.05,131.99,12.52812471]
[1763657239436,50.0,132.05,132.01,12.52812471]
[1763657239733,62.52812471,132.07,132.02,12.52812471]
[1763657239938,50.0,132.07,132.03,12.52812471]
[1763657240110,50.0,132.07,132.03,13.22812471]
[1763657240313,50.0,132.07,131.95,1.99999999]
[1763657240314,62.52812471,132.09,132.04,0.71]
[1763657240524,50.0,132.09,132.04,12.52812471]
[1763657240732,53.95951628,132.11,132.07,12.52812471]
[1763657240924,50.0,132.11,132.07,13.23812471]
[1763657241128,50.0,132.13,132.08,13.23812471]
[1763657241413,50.0,132.1,132.04,0.71]
[1763657241630,62.52812471,132.07,131.97,18.12096]
[1763657241831,50.0,132.07,132.01,12.52812471]
[1763657242054,50.0,132.07,132.02,12.52812471]
[1763657242213,62.52812471,132.07,132.02,12.52812471]
[1763657242530,50.0,132.07,132.03,13.23812471]
[1763657243044,12.52812471,132.06,132.0,13.23812471]
[1763657243360,12.52812471,132.06,131.85,87.16261885]
[1763657243361,12.52812471,132.02,131.97,0.71]
[1763657243509,50.0,132.03,131.97,13.23812471]
[1763657243847,62.52812471,132.03,131.97,0.71]
[1763657244012,12.52812471,132.02,131.97,0.71]
[1763657244210,12.52812471,132.0,131.95,12.52812471]
[1763657244438,50.0,132.01,131.95,13.23812471]
[1763657244645,12.52812471,132.0,131.95,13.23812471]
[1763657244944,50.0,132.03,131.97,12.52812471]
[1763657245267,50.0,132.03,131.96,0.71]
[1763657245421,62.52812471,132.03,131.98,12.52812471]
[1763657245615,50.0,132.03,131.98,12.52812471]
[1763657245843,62.52812471,131.99,131.93,13.23812471]
[1763657246011,50.0,131.97,131.91,12.52812471]
[1763657246209,50.0,131.97,131.92,12.52812471]
[1763657246561,50.0,131.99,131.93,12.52812471]
[1763657246715,12.52812471,131.98,131.93,12.52812471]
[1763657247114,62.52812471,131.99,131.94,0.71]
[1763657247356,50.0,132.01,131.94,0.71]
[1763657247638,50.0,132.05,132.0,12.52812471]
[1763657247857,62.52812471,132.05,132.0,13.23812471]
[1763657248067,50.0,132.05,132.01,13.23812471]
[1763657248354,50.0,132.05,132.01,0.71]
[1763657248539,50.0,132.05,132.02,13.23812471]
[1763657248737,62.52812471,132.08,132.02,13.23812471]
[1763657249156,50.0,132.06,132.01,12.52812471]
[1763657249341,50.71,132.06,131.99,1.88]
[1763657249541,62.52812471,132.05,131.99,12.52812471]
[1763657249772,62.52812471,132.05,132.0,13.20812471]
[1763657249946,17.36017531,132.08,131.98,0.68]
[1763657249947,62.52812471,132.03,131.98,0.68]
[1763657250135,50.0,132.02,131.98,0.68]
[1763657250331,50.0,132.04,131.99,13.20812471]
[1763657250736,50.0,132.04,132.0,0.68]
[1763657250951,50.0,132.04,132.0,13.20812471]
[1763657251149,50.0,132.04,131.92,7.58034003]
[1763657251150,50.0,132.04,131.85,18.96024071]
[1763657251340,63.17812471,132.04,131.98,12.52812471]
[1763657251542,50.0,132.04,131.97,0.68]
[1763657251836,62.52812471,132.04,131.97,0.68]
[1763657252039,62.52812471,132.04,131.98,12.52812471]
[1763657252463,50.0,132.04,131.99,13.20812471]
[1763657252837,50.0,132.04,131.99,0.68]
[1763657252838,62.52812471,132.04,131.99,0.68]
[1763657253037,62.52812471,132.04,131.99,13.20812471]
[1763657253276,50.0,132.06,132.02,12.52812471]
[1763657253490,1.88,132.08,132.04,12.52812471]
[1763657253491,50.0,132.08,132.04,12.52812471]
[1763657253638,0.65,132.12,132.0,1.88]
[1763657253639,62.52812471,132.1,132.05,0.68]
[1763657253955,50.0,132.1,132.03,12.52812471]
[1763657254164,62.52812471,132.1,132.04,12.52812471]
[1763657254468,50.0,132.1,132.05,12.52812471]
[1763657254837,50.0,132.1,132.03,0.68]
[1763657254838,0.65,132.09,132.03,0.68]
[1763657255140,50.0,132.1,132.06,12.52812471]
[1763657255340,50.65,132.1,132.03,0.68]
[1763657255764,50.0,132.1,132.08,12.52812471]
[1763657255976,50.0,132.15,132.09,12.52812471]
[1763657256179,0.2,132.16,132.06,20.00096]
[1763657256382,0.2,132.16,132.07,0.68]
[1763657256867,18.32096,132.16,132.07,0.68]
[1763657257079,18.32096,132.16,132.15,12.52812471]
[1763657257080,0.2,132.16,132.15,12.52812471]
[1763657257839,0.2,132.16,132.14,12.52812471]
[1763657258075,50.0,132.15,132.11,12.52812471]
[1763657258278,18.12096,132.14,132.11,12.52812471]
[1763657258776,18.12096,132.13,132.12,12.52812471]
[1763657258981,0.2,132.16,132.12,12.52812471]
[1763657259141,18.12096,132.14,132.12,12.52812471]
[1763657259336,18.12096,132.14,132.11,12.52812471]
[1763657259583,0.2,132.16,132.13,12.52812471]
[1763657259754,0.2,132.16,132.15,12.52812471]
[1763657260165,0.2,132.16,132.15,13.20812471]
[1763657260339,0.2,132.23,132.15,13.20812471]
[1763657260544,0.2,132.23,132.22,12.52812471]
[1763657260745,0.2,132.23,132.22,14.40812471]
[1763657260978,0.2,132.25,132.22,15.08812471]
[1763657261188,50.0,132.36,132.25,1.99999999]
[1763657261344,0.85,132.37,132.35,12.52812471]
[1763657261745,0.85,132.37,132.31,1.88]
[1763657261981,13.17812471,132.36,132.26,0.68]
[1763657262195,80.64908471,132.33,132.27,12.52812471]
[1763657262483,9.78882769,132.32,132.27,12.52812471]
[1763657262646,50.0,132.33,132.3,12.52812471]
[1763657262841,50.0,132.35,132.31,12.52812471]
[1763657263040,0.65,132.35,132.32,12.52812471]
[1763657263246,50.2,132.37,132.34,12.52812471]
[1763657263247,0.2,132.37,132.34,12.52812471]
[1763657263567,0.65,132.36,132.27,1.88]
[1763657263765,13.17812471,132.36,132.3,12.52812471]
[1763657264077,0.65,132.36,132.28,0.68]
[1763657264387,18.12096,132.36,132.32,12.52812471]
[1763657264681,0.2,132.37,132.34,12.52812471]
[1763657264850,0.85,132.37,132.33,12.52812471]
[1763657265052,12.52812471,132.36,132.29,1.88]
[1763657265276,12.52812471,132.36,132.31,12.52812471]
[1763657265277,18.12096,132.35,132.31,12.52812471]
[1763657265489,0.2,132.37,132.33,12.52812471]
[1763657265867,13.17812471,132.36,132.29,2.56]
[1763657266093,18.32096,132.37,132.32,12.52812471]
[1763657266308,0.2,132.37,132.35,12.52812471]
[1763657266602,0.2,132.37,132.3,13.20812471]
[1763657266603,0.2,132.37,132.36,12.52812471]
[1763657266967,0.2,132.37,132.36,13.20812471]
[1763657267185,0.2,132.37,132.36,12.52812471]
[1763657267372,0.2,132.37,132.3,12.52812471]
[1763657267602,12.52812471,132.36,132.3,1.88]
[1763657267776,18.97096,132.37,132.32,12.52812471]
[1763657267964,0.65,132.36,132.3,1.88]
[1763657268291,0.65,132.36,132.32,12.52812471]
[1763657268670,18.32096,132.37,132.32,12.52812471]
[1763657268867,0.65,132.36,132.31,12.52812471]
[1763657269087,0.65,132.36,132.32,12.52812471]
[1763657269401,0.65,132.36,132.3,1.88]
[1763657269567,0.65,132.36,132.31,12.52812471]
[1763657269763,12.52812471,132.33,132.25,0.68]
[1763657269984,77.90978769,132.35,132.28,12.52812471]
[1763657270197,12.52812471,132.32,132.22,0.68]
[1763657270494,12.52812471,132.32,132.27,12.52812471]
[1763657270684,50.0,132.33,132.26,12.52812471]
[1763657270685,0.66,132.31,132.26,12.52812471]
[1763657270885,0.66,132.31,132.24,1.88]
[1763657270886,50.0,132.33,132.29,12.52812471]
[1763657271207,27.90978769,132.35,132.18,2.75654409]
[1763657271208,63.18812471,132.32,132.18,2.75654409]
[1763657271493,18.12096,132.3,132.25,12.52812471]
[1763657271867,13.18812471,132.29,132.23,12.52812471]
[1763657272067,62.52812471,132.28,132.22,12.52812471]
[1763657272276,12.52812471,132.27,132.21,12.52812471]
[1763657272593,0.66,132.27,132.22,12.52812471]
[1763657272794,0.66,132.27,132.23,12.52812471]
[1763657272969,50.66,132.32,132.25,12.52812471]
[1763657273169,18.12096,132.29,132.25,12.52812471]
[1763657273364,59.78882769,132.33,132.27,12.52812471]
[1763657273720,13.18812471,132.33,132.26,0.68]
[1763657273886,0.66,132.33,132.28,12.52812471]
[1763657274115,31.30908471,132.32,132.23,0.68]
[1763657274397,31.30908471,132.32,132.22,1.88]
[1763657274398,12.52812471,132.29,132.22,1.88]
[1763657274704,18.12096,132.3,132.22,2.56]
[1763657274875,18.78096,132.3,132.25,12.52812471]
[1763657275074,31.30908471,132.3,132.25,12.52812471]
[1763657275275,50.0,132.32,132.26,0.68]
[1763657275492,0.66,132.33,132.28,12.52812471]
[1763657275693,18.78096,132.33,132.29,12.52812471]
[1763657275994,18.12096,132.31,132.26,12.52812471]
[1763657276167,18.12096,132.31,132.22,1.88]
[1763657276168,59.78882769,132.36,132.28,12.52812471]
[1763657276370,12.52812471,132.33,132.28,12.52812471]
[1763657276569,13.18812471,132.34,132.29,12.52812471]
[1763657276770,0.66,132.34,132.3,12.52812471]
[1763657277195,0.66,132.34,132.29,12.52812471]
[1763657277385,0.66,132.34,132.24,1.88]
[1763657277386,12.52812471,132.32,132.24,1.88]
[1763657277581,30.64908471,132.32,132.26,12.52812471]
[1763657277778,12.52812471,132.31,132.26,12.52812471]
[1763657277990,13.18812471,132.31,132.25,12.52812471]
[1763657278302,18.12096,132.32,132.29,12.52812471]
[1763657278516,18.12096,132.32,132.26,0.68]
[1763657278675,18.78096,132.32,132.26,0.68]
[1763657278875,18.78096,132.32,132.28,12.52812471]
[1763657279280,18.78096,132.32,132.27,12.52812471]
[1763657279584,62.52812471,132.33,132.29,12.52812471]
[1763657279585,18.12096,132.33,132.29,12.52812471]
[1763657279995,18.78096,132.33,132.29,12.52812471]
[1763657280196,18.78096,132.33,132.25,1.88]
[1763657280197,12.52812471,132.31,132.23,0.68]
[1763657280403,30.64908471,132.29,132.24,12.52812471]
[1763657280614,18.12096,132.31,132.27,12.52812471]
[1763657280828,13.18812471,132.3,132.25,12.52812471]
[1763657281032,18.12096,132.26,132.22,12.52812471]
[1763657281311,0.66,132.25,132.16,0.68]
[1763657281516,12.52812471,132.19,132.03,30.70812471]
[1763657281811,18.12096,132.21,132.03,30.70812471]
[1763657281812,30.64908471,132.18,132.1,0.68]
[1763657281978,12.52812471,132.19,132.13,12.52812471]
[1763657282178,18.78096,132.2,132.15,12.52812471]
[1763657282378,18.12096,132.17,132.08,0.68]
[1763657282580,12.52812471,132.14,132.08,12.52812471]
[1763657282883,12.52812471,132.12,132.06,12.52812471]
[1763657283081,0.66,132.13,132.04,1.88]
[1763657283317,0.66,132.16,132.12,12.52812471]
[1763657283525,12.52812471,132.19,132.13,12.52812471]
[1763657283678,30.64908471,132.18,132.1,1.88]
[1763657283884,18.12096,132.17,132.12,12.52812471]
[1763657284101,0.66,132.18,132.14,12.52812471]
[1763657284309,0.66,132.17,132.1,1.88]
[1763657284514,0.66,132.17,132.09,0.68]
[1763657284515,13.18812471,132.17,132.09,0.68]
[1763657284812,18.12096,132.16,132.1,12.52812471]
[1763657284986,18.12096,132.16,132.07,2.56]
[1763657284987,18.12096,132.16,132.12,12.52812471]
[1763657285190,0.66,132.19,132.13,12.52812471]
[1763657285389,0.66,132.21,132.17,12.52812471]
[1763657285600,1.88,132.24,132.18,12.52812471]
[1763657285803,1.88,132.24,132.19,12.52812471]
[1763657285981,0.66,132.23,132.2,12.52812471]
[1763657286183,0.66,132.26,132.22,12.52812471]
[1763657286382,50.0,132.31,132.25,12.52812471]
[1763657286698,50.66,132.33,132.28,12.52812471]
[1763657286894,18.78096,132.32,132.28,12.52812471]
[1763657287088,18.12096,132.3,132.28,12.52812471]
[1763657287293,18.12096,132.3,132.24,1.88]
[1763657287294,18.12096,132.3,132.27,12.52812471]
[1763657287494,18.12096,132.3,132.17,0.75660134]
[1763657287695,0.66,132.29,132.2,0.68]
[1763657287990,0.66,132.29,132.26,12.52812471]
[1763657288219,0.66,132.29,132.25,12.52812471]
[1763657288425,50.66,132.34,132.22,0.68]
[1763657288589,0.86,132.37,132.32,12.52812471]
[1763657288796,0.86,132.37,132.26,1.88]
[1763657289015,0.66,132.36,132.31,12.52812471]
[1763657289216,0.66,132.36,132.32,12.52812471]
[1763657289527,0.2,132.37,132.35,12.52812471]
[1763657289824,0.2,132.37,132.33,1.88]
[1763657289990,0.2,132.37,132.36,12.52812471]
[1763657290526,0.2,132.37,132.36,13.20812471]
[1763657290815,18.12096,132.36,132.3,12.52812471]
[1763657291001,0.2,132.37,132.35,12.52812471]
[1763657291204,0.2,132.37,132.36,13.20812471]
[1763657291408,0.66,132.46,132.36,15.08812471]
[1763657291728,0.86,132.47,132.44,12.52812471]
[1763657291936,0.66,132.46,132.44,12.52812471]
[1763657292104,0.2,132.47,132.45,12.52812471]
[1763657292308,0.2,132.47,132.43,12.52812471]
[1763657292507,18.12096,132.42,132.39,12.52812471]
[1763657292822,18.12096,132.39,132.31,0.68]
[1763657293117,18.12096,132.38,132.35,7.93281381]
[1763657293306,18.12096,132.38,132.34,7.93281381]
[1763657293509,18.12096,132.35,132.33,7.93281381]
[1763657293914,18.12096,132.38,132.34,7.93281381]
[1763657294091,18.12096,132.38,132.35,7.93281381]
[1763657294294,18.12096,132.38,132.36,7.93281381]
[1763657294596,18.12096,132.38,132.32,7.93281381]
[1763657294799,0.66,132.41,132.37,7.93281381]
[1763657295001,9.78882769,132.43,132.35,0.68]
[1763657295217,27.90978769,132.41,132.32,8.61281381]
[1763657295424,18.12096,132.38,132.36,7.93281381]
[1763657295589,18.12096,132.38,132.35,7.93281381]
[1763657295789,18.12096,132.38,132.36,7.93281381]
[1763657296025,0.2,132.47,132.37,8.61281381]
[1763657296327,18.12096,132.4,132.35,0.68]
[1763657296487,18.12096,132.38,132.31,0.68]
[1763657296694,50.66,132.45,132.37,7.93281381]
[1763657296933,9.78882769,132.44,132.36,1.88]
[1763657297114,10.44882769,132.44,132.41,7.93281381]
[1763657297425,9.78882769,132.46,132.43,7.93281381]
[1763657297589,0.66,132.45,132.38,0.68]
[1763657297791,18.12096,132.42,132.38,0.68]
[1763657298013,18.12096,132.41,132.37,1.9]
[1763657298220,18.12096,132.41,132.36,1.88]
[1763657298408,18.12096,132.43,132.4,7.93281381]
[1763657298604,0.66,132.45,132.42,7.93281381]
[1763657298808,0.2,132.47,132.44,7.93281381]
[1763657298999,0.2,132.47,132.46,7.93281381]
[1763657299196,0.86,132.47,132.39,2.58]
[1763657299423,18.12096,132.45,132.44,7.93281381]
[1763657299631,0.2,132.47,132.44,7.93281381]
[1763657299831,0.2,132.47,132.46,7.93281381]
[1763657300319,0.2,132.47,132.46,8.61281381]
[1763657300544,0.2,132.52,132.46,16.54562762]
[1763657300748,0.2,132.52,132.51,7.93281381]
[1763657301326,0.2,132.56,132.51,7.93281381]
[1763657301530,0.2,132.56,132.55,15.86562762]
[1763657301740,0.2,132.56,132.55,16.54562762]
[1763657302041,0.2,132.56,132.55,18.44562762]
[1763657302241,0.2,132.56,132.55,9.83281381]
[1763657302443,0.2,132.56,132.55,7.93281381]
[1763657302630,0.2,132.56,132.48,8.61281381]
[1763657302631,0.91,132.56,132.48,8.61281381]
[1763657302815,9.78882769,132.55,132.52,1.88]
[1763657303018,18.12096,132.55,132.54,7.93281381]
[1763657303234,0.71,132.54,132.48,10.51281381]
[1763657303433,0.2,132.56,132.53,7.93281381]
[1763657303755,0.2,132.56,132.55,15.86562762]
[1763657303956,0.2,132.56,132.55,1.9]
[1763657304253,0.2,132.56,132.55,7.93281381]
[1763657304956,0.2,132.56,132.48,7.93281381]
[1763657304957,9.78882769,132.55,132.48,7.93281381]
[1763657305251,9.78882769,132.55,132.52,7.93281381]
[1763657305418,10.49882769,132.55,132.52,7.93281381]
[1763657305623,18.12096,132.54,132.53,7.93281381]
[1763657306220,18.12096,132.54,132.48,9.81281381]
[1763657306415,18.83096,132.54,132.47,0.68]
[1763657306653,0.2,132.56,132.53,7.93281381]
[1763657306918,0.2,132.56,132.55,7.93281381]
[1763657307142,0.2,132.56,132.55,15.86562762]
[1763657307419,0.71,132.65,132.63,7.93281381]
[1763657307639,0.71,132.65,132.59,1.88]
[1763657307840,50.71,132.65,132.56,7.93281381]
[1763657308044,27.90978769,132.64,132.6,7.93281381]
[1763657308251,9.78882769,132.6,132.51,0.58]
[1763657308432,9.78882769,132.56,132.52,7.93281381]
[1763657308757,0.71,132.62,132.55,7.93281381]
[1763657308950,0.71,132.6,132.57,7.93281381]
[1763657309151,0.71,132.6,132.58,7.93281381]
[1763657309330,0.71,132.6,132.53,0.58]
[1763657309656,0.71,132.6,132.57,7.93281381]
[1763657309826,0.71,132.6,132.52,1.9]
[1763657309827,9.78882769,132.59,132.52,1.9]
[1763657310029,67.7216415,132.59,132.53,7.93281381]
[1763657310228,67.7216415,132.57,132.47,0.58]
[1763657310441,67.7216415,132.57,132.46,1.9]
[1763657310442,9.78882769,132.55,132.46,1.9]
[1763657310641,9.78882769,132.53,132.41,0.58]
[1763657310851,9.78882769,132.53,132.4,7.93281381]
[1763657310852,18.12096,132.54,132.52,7.93281381]
[1763657311332,18.12096,132.56,132.53,7.93281381]
[1763657311567,57.93281381,132.61,132.55,7.93281381]
[1763657311728,9.78882769,132.59,132.55,7.93281381]
[1763657312040,9.78882769,132.59,132.16,16.39008547]
[1763657312041,18.12096,132.53,132.44,0.58]
[1763657312374,18.12096,132.54,132.52,7.93281381]
[1763657312662,18.83096,132.56,132.53,7.93281381]
[1763657313048,0.71,132.56,132.53,7.93281381]
[1763657313234,9.78882769,132.58,132.55,7.93281381]
[1763657313434,17.7216415,132.63,132.52,0.58]
[1763657313642,18.12096,132.58,132.53,1.9]
[1763657313945,9.78882769,132.57,132.53,7.93281381]
[1763657314149,9.78882769,132.57,132.48,0.58]
[1763657314150,9.78882769,132.55,132.48,0.58]
[1763657314449,18.12096,132.5,132.42,0.58]
[1763657314633,7.93281381,132.52,132.4,7.93281381]
[1763657314634,18.12096,132.48,132.4,7.93281381]
[1763657314956,18.12096,132.48,132.45,7.93281381]
[1763657315254,18.12096,132.48,132.41,0.58]
[1763657315476,18.12096,132.48,132.45,7.93281381]
[1763657315675,18.12096,132.48,132.44,7.93281381]
[1763657315871,18.83096,132.47,132.43,7.93281381]
[1763657316079,18.12096,132.43,132.36,1.9]
[1763657316283,18.12096,132.43,132.34,0.58]
[1763657316284,18.12096,132.41,132.34,0.58]
[1763657316455,18.12096,132.4,132.32,9.83281381]
[1763657316654,18.12096,132.4,132.35,7.93281381]
[1763657316882,0.71,132.39,132.36,7.93281381]
[1763657317249,18.12096,132.42,132.33,0.58]
[1763657317450,35.8426015,132.39,132.3,18.72]
[1763657317652,9.78882769,132.37,132.27,0.78]
[1763657317851,0.71,132.38,132.34,7.93281381]
[1763657318054,27.90978769,132.39,132.28,2.48]
[1763657318256,0.71,132.38,132.35,7.93281381]
[1763657318452,18.83096,132.38,132.33,7.93281381]
[1763657318679,18.83096,132.38,132.34,7.93281381]